bitfinex-derivatives/quotes_BTCF0:USTF0_20250402
["timestamp","ask_amount","ask_price","bid_price","bid_amount"]
[1743615117741,0.00060001,86694.0,86690.0,0.1153506]
[1743615117941,0.1229,86697.0,86693.0,0.115346]
[1743615118143,0.00017303,86701.0,86700.0,0.1153379]
[1743615118453,0.00077304,86701.0,86700.0,0.3486]
[1743615118747,0.11550963,86701.0,86700.0,0.33868]
[1743615118953,0.11626963,86701.0,86700.0,0.33868]
[1743615119151,0.11626963,86701.0,86700.0,0.25084]
[1743615119648,0.11626963,86701.0,86700.0,0.00084]
[1743615119948,0.1153432,86696.0,86695.0,0.0878]
[1743615120140,0.1161432,86696.0,86695.0,0.09868]
[1743615121552,0.2406432,86696.0,86695.0,0.09868]
[1743615122351,0.6014432,86696.0,86695.0,0.00088]
[1743615122546,0.7324432,86696.0,86695.0,0.00088]
[1743615122744,0.7324432,86696.0,86675.0,0.00173064]
[1743615122745,0.1153645,86680.0,86675.0,0.00173064]
[1743615122959,0.4769245,86680.0,86679.0,0.00106147]
[1743615123149,0.36156,86680.0,86679.0,0.00046147]
[1743615123345,0.131,86696.0,86684.0,0.0576793]
[1743615123545,0.1153552,86687.0,86686.0,0.17200793]
[1743615123739,0.1153552,86687.0,86686.0,0.00072]
[1743615124044,0.1153632,86681.0,86680.0,0.1214]
[1743615124350,0.00060001,86681.0,86680.0,0.2374845]
[1743615124549,0.1279,86686.0,86685.0,0.1153579]
[1743615124752,0.2432565,86686.0,86685.0,0.0208]
[1743615124944,0.2439765,86686.0,86685.0,0.0208]
[1743615125461,0.3702765,86686.0,86685.0,0.0208]
[1743615125754,0.3702765,86686.0,86685.0,0.1353579]
[1743615125953,0.3702765,86686.0,86685.0,0.1360779]
[1743615126343,0.3702765,86686.0,86685.0,0.02072]
[1743615126540,0.3702765,86686.0,86685.0,0.02]
[1743615126746,0.1153645,86680.0,86679.0,0.00046147]
[1743615126952,0.1153645,86680.0,86679.0,0.01118147]
[1743615126953,0.1160845,86680.0,86679.0,0.01118147]
[1743615127456,0.00072,86680.0,86679.0,0.12654727]
[1743615127645,0.1277,86680.0,86679.0,0.12654727]
[1743615127953,0.12830001,86680.0,86679.0,0.12654727]
[1743615128251,0.00060001,86680.0,86679.0,0.12654727]
[1743615128455,0.1153645,86680.0,86679.0,0.01118147]
[1743615128653,0.1161245,86680.0,86679.0,0.01118147]
[1743615129042,0.4769245,86680.0,86679.0,0.01046147]
[1743615129242,0.4769245,86680.0,86679.0,0.00046147]
[1743615129451,0.7399245,86680.0,86679.0,0.00046147]
[1743615129753,0.7399245,86680.0,86586.0,0.03985399]
[1743615129754,0.1153858,86667.0,86666.0,0.0576907]
[1743615129958,0.1153858,86667.0,86666.0,0.2184907]
[1743615130452,0.1153858,86667.0,86666.0,0.1608]
[1743615130653,0.7399458,86667.0,86666.0,0.1608]
[1743615130960,0.7399458,86667.0,86666.0,0.2761831]
[1743615131149,0.7391858,86667.0,86666.0,0.16]
[1743615131450,0.7391858,86667.0,86666.0,0.1153831]
[1743615131656,0.3783858,86667.0,86666.0,0.1153831]
[1743615132650,0.3783818,86667.0,86666.0,0.1]
[1743615132844,0.56627125,86689.0,86671.0,0.0576879]
[1743615133056,0.20547125,86689.0,86682.0,0.1153618]
[1743615133263,0.01165415,86711.0,86700.0,0.1153379]
[1743615133451,0.1253,86705.0,86691.0,0.0576745]
[1743615133756,0.4761485,86692.0,86691.0,0.02]
[1743615133957,0.4761485,86692.0,86677.0,0.1453685]
[1743615133958,0.1153672,86678.0,86677.0,0.1453685]
[1743615134150,0.1153672,86678.0,86677.0,0.1353685]
[1743615134547,0.2562,86679.0,86678.0,0.1153672]
[1743615134751,0.2562,86679.0,86678.0,0.1253672]
[1743615134960,0.3715658,86679.0,86678.0,0.1253672]
[1743615135555,0.50593959,86679.0,86678.0,0.01072]
[1743615135752,0.50593959,86679.0,86678.0,0.1153672]
[1743615135951,0.50593959,86679.0,86678.0,0.4769672]
[1743615136152,0.25692,86679.0,86678.0,0.5869672]
[1743615137048,0.3722858,86679.0,86678.0,0.5869672]
[1743615137253,0.25692,86679.0,86678.0,0.5869672]
[1743615137454,0.3722858,86679.0,86678.0,0.1108]
[1743615137662,0.50444614,86679.0,86678.0,0.1108]
[1743615137958,0.1153685,86677.0,86676.0,0.1173698]
[1743615138153,0.56141214,86679.0,86678.0,0.1153672]
[1743615138464,0.13158,86679.0,86678.0,0.1253672]
[1743615138659,0.3608,86693.0,86678.0,0.1253672]
[1743615138660,0.115329,86707.0,86685.0,0.1153579]
[1743615138863,0.1282,86689.0,86685.0,0.5570779]
[1743615139065,0.11648954,86686.0,86685.0,0.2062779]
[1743615139366,0.00113304,86686.0,86685.0,0.5670779]
[1743615139566,0.00017303,86686.0,86685.0,0.5670779]
[1743615140060,3e-08,86686.0,86685.0,0.6941779]
[1743615140268,3e-08,86686.0,86685.0,0.8241779]
[1743615140670,0.23921418,86701.0,86700.0,0.1153379]
[1743615140965,0.1315,86719.0,86718.0,0.115314]
[1743615141163,0.3608,86733.0,86718.0,0.686274]
[1743615141370,0.0004,86736.0,86734.0,0.1152927]
[1743615141665,0.1315,86751.0,86738.0,0.0576432]
[1743615141863,0.1328,86749.0,86748.0,0.4760741]
[1743615142064,0.1328,86749.0,86748.0,0.5172741]
[1743615142266,0.1328,86749.0,86748.0,0.0412]
[1743615142267,0.1887698,86749.0,86748.0,0.0412]
[1743615142462,0.1887698,86749.0,86748.0,0.0212]
[1743615142660,0.1887698,86749.0,86727.0,0.3608]
[1743615142661,0.0576437,86738.0,86689.0,0.3608]
[1743615142972,0.1153352,86702.0,86695.0,0.3608]
[1743615143267,0.5765169,86726.0,86695.0,0.3608]
[1743615143268,0.1152949,86733.0,86732.0,0.1152914]
[1743615143467,0.0576455,86736.0,86720.0,0.17200793]
[1743615143671,0.11531,86721.0,86720.0,0.03]
[1743615143966,0.1153352,86702.0,86701.0,0.002]
[1743615144164,0.4761352,86702.0,86701.0,0.35245179]
[1743615144564,0.23563641,86702.0,86701.0,0.34245179]
[1743615144869,0.23563641,86702.0,86694.0,0.40854215]
[1743615144870,0.0576708,86698.0,86694.0,0.31031335]
[1743615145065,0.133,86697.0,86690.0,0.0576744]
[1743615145365,0.0576794,86685.0,86682.0,0.1730399]
[1743615145666,0.3608,86693.0,86682.0,0.1730399]
[1743615145667,0.133,86684.0,86683.0,0.1153605]
[1743615145869,0.133,86684.0,86683.0,0.1253605]
[1743615145870,0.2483605,86684.0,86683.0,0.1253605]
[1743615146366,0.1329,86685.0,86684.0,0.1153592]
[1743615146564,0.00017303,86692.0,86684.0,0.1153592]
[1743615146565,0.00017303,86692.0,86690.0,0.1153512]
[1743615146765,0.00017303,86692.0,86691.0,0.7307499]
[1743615146974,0.4183014,86704.0,86703.0,0.1153339]
[1743615147164,0.3029671,86704.0,86703.0,0.1153339]
[1743615147365,0.3038871,86704.0,86703.0,0.1162539]
[1743615147559,0.12092,86704.0,86703.0,0.1162539]
[1743615147762,0.1153166,86716.0,86715.0,0.1729736]
[1743615147964,0.1315,86721.0,86720.0,0.1153113]
[1743615148161,0.01174151,86727.0,86726.0,0.1153033]
[1743615148366,0.00017303,86729.0,86728.0,0.1153007]
[1743615148572,0.11547233,86729.0,86728.0,0.00096]
[1743615148781,0.0004,86720.0,86700.0,0.1153372]
[1743615149068,0.0004,86720.0,86700.0,0.02064]
[1743615149069,0.1153366,86701.0,86700.0,0.02064]
[1743615149274,0.1160166,86701.0,86700.0,0.02]
[1743615149474,0.1153539,86688.0,86687.0,0.3608]
[1743615149774,0.1153645,86680.0,86679.0,0.00106147]
[1743615150073,0.11596451,86680.0,86679.0,0.1572003]
[1743615150281,0.1153599,86688.0,86687.0,0.1730263]
[1743615150578,0.1153599,86688.0,86687.0,0.2836252]
[1743615150579,0.11612694,86688.0,86687.0,0.2836252]
[1743615150775,0.11552693,86688.0,86687.0,0.1682765]
[1743615151079,0.11612694,86688.0,86687.0,0.1682765]
[1743615152569,0.11612694,86688.0,86687.0,0.1106]
[1743615152772,0.2400397,86688.0,86687.0,0.0006]
[1743615153072,0.1153645,86681.0,86680.0,0.1153633]
[1743615153274,0.11596451,86681.0,86680.0,0.1260033]
[1743615154278,0.47676451,86681.0,86680.0,0.1260045]
[1743615154774,0.24439377,86681.0,86680.0,0.1260045]
[1743615155672,0.00060001,86681.0,86680.0,0.4868045]
[1743615155877,0.3608,86703.0,86687.0,0.1153552]
[1743615156174,0.3608,86710.0,86697.0,0.1153419]
[1743615156381,0.1730025,86703.0,86700.0,0.0576683]
[1743615156577,0.32863238,86709.0,86708.0,0.1153273]
[1743615156765,0.44395828,86709.0,86708.0,0.1253273]
[1743615156970,0.44471828,86709.0,86708.0,0.1261673]
[1743615157273,0.44471828,86709.0,86708.0,0.4869673]
[1743615157776,0.44471828,86709.0,86708.0,0.1261673]
[1743615158174,0.1153366,86701.0,86693.0,0.3608]
[1743615158479,0.4768166,86701.0,86694.0,0.1153458]
[1743615158665,0.59756855,86701.0,86694.0,0.2306907]
[1743615158871,0.59756855,86701.0,86700.0,0.00093303]
[1743615159083,0.59756855,86701.0,86700.0,0.00017303]
[1743615159282,0.59756855,86701.0,86700.0,0.11551093]
[1743615159469,0.1160166,86701.0,86700.0,0.12551093]
[1743615159673,0.1160166,86701.0,86700.0,0.12611093]
[1743615159977,0.1160166,86701.0,86700.0,0.01077303]
[1743615160175,0.1160166,86701.0,86700.0,0.12611093]
[1743615160366,0.1160166,86701.0,86700.0,0.25731093]
[1743615160769,0.1160166,86701.0,86700.0,0.01077303]
[1743615160980,0.1160166,86701.0,86700.0,0.01017303]
[1743615161487,0.1160166,86701.0,86700.0,0.01077303]
[1743615161674,0.1160166,86701.0,86700.0,0.12551093]
[1743615161869,0.1160166,86701.0,86700.0,0.12615093]
[1743615162074,0.1160166,86701.0,86700.0,0.00081303]
[1743615162269,0.1160166,86701.0,86700.0,0.00017303]
[1743615162584,0.1160166,86701.0,86700.0,0.01077303]
[1743615163284,0.1160166,86701.0,86700.0,0.01017303]
[1743615163479,0.1160166,86701.0,86700.0,0.01077303]
[1743615163680,0.1160166,86701.0,86700.0,0.01017303]
[1743615164183,0.1160166,86701.0,86700.0,0.12551093]
[1743615164184,0.00068,86701.0,86700.0,0.12551093]
[1743615164385,0.00017303,86717.0,86707.0,0.1153286]
[1743615164386,7e-08,86708.0,86707.0,0.1153286]
[1743615164586,0.1255,86735.0,86716.0,0.057658]
[1743615164882,0.0576548,86722.0,86717.0,0.2556]
[1743615165090,0.115314,86718.0,86717.0,0.2762]
[1743615165391,0.476794,86718.0,86717.0,0.0206]
[1743615165580,0.1729957,86708.0,86707.0,0.1153274]
[1743615165780,0.1729957,86708.0,86707.0,0.1353274]
[1743615165975,0.1249,86709.0,86707.0,0.1359274]
[1743615166179,0.1249,86709.0,86708.0,0.3645273]
[1743615166383,0.49337303,86726.0,86720.0,0.1729621]
[1743615166384,0.0576523,86725.0,86720.0,0.1729621]
[1743615166589,0.2478129,86721.0,86720.0,0.0106]
[1743615166791,0.37498361,86721.0,86720.0,0.01]
[1743615166992,0.37566361,86721.0,86720.0,0.0106]
[1743615167690,0.0576612,86712.0,86700.0,0.36097303]
[1743615167882,0.1153366,86701.0,86700.0,0.00017303]
[1743615168189,0.1161766,86701.0,86700.0,0.12611093]
[1743615168592,0.1161766,86701.0,86700.0,0.01077303]
[1743615168885,0.3611766,86701.0,86700.0,0.12551093]
[1743615169086,0.3611766,86701.0,86700.0,0.01077303]
[1743615169596,0.3608,86724.0,86723.0,0.1153073]
[1743615169889,0.476786,86724.0,86723.0,0.1159873]
[1743615170080,0.476786,86724.0,86723.0,0.01068]
[1743615170282,0.476786,86724.0,86723.0,0.01]
[1743615170489,0.721786,86724.0,86723.0,0.01]
[1743615170684,0.1153366,86701.0,86700.0,0.47631093]
[1743615170879,0.1153366,86701.0,86700.0,0.49631093]
[1743615171093,0.1153366,86701.0,86700.0,0.49691093]
[1743615171586,0.11593661,86701.0,86700.0,0.49691093]
[1743615171793,0.37213661,86701.0,86700.0,0.49691093]
[1743615172189,0.37213661,86701.0,86700.0,0.62281093]
[1743615172592,0.37213661,86701.0,86700.0,0.02077303]
[1743615172895,0.1153645,86680.0,86666.0,0.27508418]
[1743615173088,0.36164,86680.0,86666.0,0.27508418]
[1743615173288,0.13095819,86680.0,86678.0,0.1153672]
[1743615173483,0.13095819,86680.0,86679.0,0.2412658]
[1743615173795,0.13095819,86680.0,86679.0,0.2418658]
[1743615173796,0.1161645,86680.0,86679.0,0.2418658]
[1743615173986,0.0008,86680.0,86679.0,0.6026658]
[1743615174298,0.0008,86680.0,86679.0,0.6226658]
[1743615174491,0.0576791,86685.0,86684.0,0.1730355]
[1743615174693,0.0584391,86685.0,86684.0,0.3099355]
[1743615174995,0.173797,86685.0,86684.0,0.194579]
[1743615175505,0.173797,86685.0,86684.0,0.068279]
[1743615176687,0.295397,86685.0,86684.0,0.068279]
[1743615177699,0.1800391,86685.0,86684.0,0.068279]
[1743615180198,0.0584391,86685.0,86684.0,0.068279]
[1743615181593,0.00076,86685.0,86684.0,0.068279]
[1743615183194,0.00017303,86688.0,86687.0,0.1153552]
[1743615183391,0.00017303,86688.0,86687.0,0.2559552]
[1743615183593,0.00093303,86688.0,86687.0,0.2559552]
[1743615183989,0.24544256,86688.0,86687.0,0.0006]
[1743615184196,0.1153752,86672.0,86671.0,0.11554953]
[1743615184394,0.11633521,86672.0,86671.0,0.12614953]
[1743615184598,0.00096001,86672.0,86671.0,0.12614953]
[1743615184801,0.11633521,86672.0,86671.0,0.12614953]
[1743615185000,0.00096001,86672.0,86671.0,0.12614953]
[1743615185201,0.1263,86682.0,86681.0,0.1153632]
[1743615185395,0.24270181,86682.0,86681.0,0.1259632]
[1743615186399,0.24270181,86682.0,86681.0,0.2514632]
[1743615186601,0.7334187,86682.0,86681.0,0.0106]
[1743615186906,0.7334187,86682.0,86671.0,0.00017303]
[1743615186907,0.1153752,86672.0,86671.0,3e-08]
[1743615187094,0.1153858,86664.0,86648.0,0.6187]
[1743615187294,0.47714581,86664.0,86648.0,0.4863]
[1743615187602,0.1153911,86660.0,86649.0,0.39048968]
[1743615187805,0.11635111,86660.0,86649.0,0.39048968]
[1743615188005,0.12512188,86660.0,86659.0,0.13712345]
[1743615188305,0.24051298,86660.0,86659.0,0.13772345]
[1743615188505,0.26281685,86660.0,86659.0,0.13772345]
[1743615189004,0.00795498,86660.0,86659.0,0.50852345]
[1743615189203,0.00699497,86660.0,86659.0,0.76332345]
[1743615189403,0.12238607,86660.0,86659.0,0.39313095]
[1743615189702,0.1383308,86660.0,86659.0,0.13772345]
[1743615189895,0.00795498,86660.0,86659.0,0.13772345]
[1743615190397,0.12334608,86660.0,86659.0,0.39252345]
[1743615190600,0.13465498,86660.0,86659.0,0.39252345]
[1743615190898,0.13465498,86660.0,86659.0,0.75332345]
[1743615191095,0.25004608,86660.0,86659.0,0.75332345]
[1743615191294,0.25535498,86660.0,86659.0,0.75332345]
[1743615191497,0.00795498,86660.0,86659.0,0.75332345]
[1743615191696,0.00699497,86660.0,86659.0,0.75332345]
[1743615192503,0.00699497,86660.0,86659.0,0.76332345]
[1743615192809,0.00795498,86660.0,86659.0,0.76332345]
[1743615193004,0.1207,86667.0,86666.0,0.1153831]
[1743615193204,0.12174001,86667.0,86666.0,0.1360631]
[1743615193405,0.23712181,86667.0,86666.0,0.1360631]
[1743615193811,0.23712181,86667.0,86666.0,0.3964631]
[1743615194010,0.35882181,86667.0,86666.0,0.3964631]
[1743615195010,0.3608,86697.0,86684.0,0.1153592]
[1743615195316,0.4767979,86685.0,86684.0,0.1259592]
[1743615195615,0.1159979,86685.0,86684.0,0.0106]
[1743615195802,0.12304523,86685.0,86684.0,0.01]
[1743615196606,0.00768733,86685.0,86684.0,0.1253592]
[1743615196813,0.00768733,86685.0,86684.0,0.1260392]
[1743615197111,0.0004,86688.0,86687.0,0.1153552]
[1743615197407,0.00100001,86688.0,86687.0,0.6368752]
[1743615197613,0.0004,86688.0,86687.0,0.6368752]
[1743615198709,0.1157539,86688.0,86687.0,0.6368752]
[1743615198914,0.1165539,86688.0,86687.0,0.6368752]
[1743615199106,0.1165539,86688.0,86687.0,0.6268752]
[1743615199306,0.2442539,86688.0,86687.0,0.6268752]
[1743615200007,0.2442539,86688.0,86687.0,0.51152]
[1743615200204,0.1153645,86680.0,86661.0,0.0576947]
[1743615200405,0.1153898,86661.0,86660.0,0.4184946]
[1743615200602,0.1153898,86661.0,86660.0,0.4384946]
[1743615200805,0.1153876,86663.0,86662.0,0.1153871]
[1743615201004,0.1153876,86663.0,86662.0,0.1359871]
[1743615201005,0.50761825,86663.0,86662.0,0.1359871]
[1743615202012,0.27203065,86663.0,86662.0,0.1359871]
[1743615202316,0.15482608,86663.0,86662.0,0.1359871]
[1743615202702,0.15414608,86663.0,86662.0,0.2560871]
[1743615203117,0.15490608,86663.0,86662.0,0.2560871]
[1743615203501,0.15484216,86663.0,86662.0,0.2560871]
[1743615203712,0.02714216,86663.0,86662.0,0.2560871]
[1743615203912,0.02638216,86663.0,86662.0,0.2560871]
[1743615204616,0.02706216,86663.0,86662.0,0.2560871]
[1743615204803,0.25577543,86663.0,86662.0,0.2560871]
[1743615205208,0.24388,86663.0,86662.0,0.2560871]
[1743615207013,0.7200671,86663.0,86662.0,0.0206]
[1743615207205,0.1153911,86660.0,86659.0,0.00173095]
[1743615207517,0.1160711,86660.0,86659.0,0.00173095]
[1743615207707,0.24250205,86660.0,86659.0,0.00173095]
[1743615207907,0.24250205,86660.0,86647.0,0.41896544]
[1743615207908,0.1154071,86648.0,86647.0,0.00046164]
[1743615208117,0.1154098,86646.0,86645.0,0.20563444]
[1743615208412,0.1154098,86646.0,86645.0,0.20623444]
[1743615208413,0.1160898,86646.0,86645.0,0.20623444]
[1743615208618,0.24252075,86646.0,86645.0,0.20563444]
[1743615208919,0.50229574,86646.0,86645.0,0.20563444]
[1743615209218,0.50229574,86646.0,86645.0,0.20623444]
[1743615209404,0.49764845,86646.0,86645.0,0.20563444]
[1743615209718,0.1154258,86634.0,86633.0,0.0577133]
[1743615209914,0.1154258,86634.0,86633.0,0.1983133]
[1743615210116,0.1225535,86634.0,86633.0,0.1983133]
[1743615210317,0.3679277,86634.0,86631.0,0.00046173]
[1743615210517,0.1154391,86624.0,86623.0,0.27508418]
[1743615211119,0.1165191,86624.0,86623.0,0.27568418]
[1743615211317,0.1225668,86624.0,86623.0,0.27508418]
[1743615211513,0.3791668,86624.0,86623.0,0.27508418]
[1743615211707,0.51152699,86624.0,86623.0,0.27508418]
[1743615213515,0.64302699,86624.0,86623.0,0.27508418]
[1743615213711,0.51152699,86624.0,86623.0,0.27508418]
[1743615213915,0.39608789,86624.0,86623.0,0.27508418]
[1743615214120,0.2637277,86624.0,86623.0,0.40052458]
[1743615214514,0.3791668,86624.0,86623.0,0.28508418]
[1743615214927,0.3791668,86624.0,86623.0,0.01]
[1743615215122,0.1154498,86616.0,86615.0,0.00046181]
[1743615215323,0.1154498,86616.0,86615.0,0.05046181]
[1743615215717,0.1225775,86616.0,86615.0,0.05046181]
[1743615216226,0.1225775,86616.0,86615.0,0.05106181]
[1743615216227,0.12361751,86616.0,86615.0,0.05106181]
[1743615216615,0.37081751,86616.0,86615.0,0.05106181]
[1743615218114,0.38542321,86616.0,86615.0,0.05106181]
[1743615218514,0.26997341,86616.0,86615.0,0.16651291]
[1743615218719,0.25536771,86616.0,86615.0,0.16651291]
[1743615219022,0.38541757,86616.0,86615.0,0.05106181]
[1743615219527,0.38541757,86616.0,86615.0,0.05046181]
[1743615219727,0.38541757,86616.0,86615.0,0.00046181]
[1743615220128,0.39756632,86616.0,86615.0,0.00046181]
[1743615220324,0.40636879,86616.0,86615.0,1e-08]
[1743615220534,0.53016623,86616.0,86615.0,1e-08]
[1743615220717,0.53044016,86616.0,86615.0,1e-08]
[1743615222032,0.40664272,86616.0,86615.0,1e-08]
[1743615222535,0.39745424,86616.0,86615.0,0.01000001]
[1743615222731,0.27174025,86616.0,86615.0,0.01000001]
[1743615222923,0.27174025,86616.0,86615.0,0.01060001]
[1743615223119,0.15629045,86616.0,86615.0,0.48685111]
[1743615223427,0.27174025,86616.0,86615.0,0.12605111]
[1743615223619,0.27174025,86616.0,86615.0,0.01060001]
[1743615223819,0.2595915,86616.0,86615.0,0.01060001]
[1743615224127,0.2595915,86616.0,86615.0,0.12605111]
[1743615224334,0.2595915,86616.0,86615.0,0.01060001]
[1743615224636,0.2595915,86616.0,86615.0,0.12545111]
[1743615224835,0.2595915,86616.0,86615.0,0.12605111]
[1743615225223,0.2595915,86616.0,86615.0,0.24635111]
[1743615226732,0.2595915,86616.0,86615.0,0.01060001]
[1743615226932,0.2595915,86616.0,86615.0,0.01000001]
[1743615227335,0.27171022,86616.0,86615.0,0.01000001]
[1743615228129,0.25683623,86616.0,86615.0,0.01000001]
[1743615228334,0.27138787,86616.0,86615.0,0.01060001]
[1743615228636,0.15593807,86616.0,86615.0,0.01060001]
[1743615228935,0.27138787,86616.0,86615.0,0.25079111]
[1743615229128,0.39658787,86616.0,86615.0,0.25079111]
[1743615229332,0.38446915,86616.0,86615.0,0.25079111]
[1743615229930,0.38446915,86616.0,86615.0,0.37789111]
[1743615230134,0.36991751,86616.0,86615.0,0.37789111]
[1743615230532,0.36991751,86616.0,86615.0,0.01104001]
[1743615230730,0.36991751,86616.0,86615.0,0.01000001]
[1743615230939,0.3816117,86616.0,86615.0,0.01000001]
[1743615231130,0.39630919,86616.0,86615.0,0.01000001]
[1743615231434,0.52899005,86616.0,86615.0,0.01000001]
[1743615231732,0.52899005,86616.0,86615.0,1e-08]
[1743615233030,0.52899005,86616.0,86615.0,0.00060001]
[1743615233630,0.28834025,86616.0,86615.0,0.36080001]
[1743615233829,0.27110919,86616.0,86615.0,0.02060001]
[1743615234039,0.63190919,86616.0,86615.0,0.02060001]
[1743615234339,0.7520022,86616.0,86615.0,0.02060001]
[1743615234642,0.1154684,86602.0,86600.0,0.2204706]
[1743615234939,0.1312059,86602.0,86601.0,0.3948]
[1743615235131,0.1312059,86602.0,86601.0,0.5102697]
[1743615235329,0.1312059,86602.0,86601.0,0.1306]
[1743615235627,0.54302613,86602.0,86601.0,0.1306]
[1743615236431,0.54302613,86602.0,86601.0,0.0506]
[1743615236626,0.54302613,86602.0,86601.0,0.4219697]
[1743615236838,0.27792779,86602.0,86601.0,0.4220497]
[1743615237037,0.15002779,86602.0,86601.0,0.4420497]
[1743615237234,0.03455939,86602.0,86601.0,0.4420497]
[1743615237437,0.03351938,86602.0,86601.0,0.4420497]
[1743615237939,0.02182519,86602.0,86601.0,0.4420497]
[1743615238145,0.0071277,86602.0,86601.0,0.4420497]
[1743615239044,0.1225961,86602.0,86601.0,0.4420497]
[1743615239448,0.00108,86602.0,86601.0,0.4420497]
[1743615239846,0.1278,86619.0,86609.0,0.1154591]
[1743615240145,0.28674832,86610.0,86609.0,0.1460591]
[1743615240647,0.28674832,86610.0,86609.0,0.3986591]
[1743615240850,0.28674832,86610.0,86609.0,0.4086591]
[1743615242552,0.17129062,86610.0,86609.0,0.4086591]
[1743615242851,0.11649771,86610.0,86609.0,0.4086591]
[1743615243057,0.00104001,86610.0,86609.0,0.4086591]
[1743615243547,0.1154484,86618.0,86617.0,0.1731693]
[1743615243744,0.1154484,86618.0,86617.0,0.2038493]
[1743615243947,0.00104001,86618.0,86617.0,0.2038493]
[1743615244145,0.17025061,86623.0,86622.0,0.1154418]
[1743615244446,0.41123102,86623.0,86622.0,0.03068]
[1743615244649,0.53813102,86623.0,86622.0,0.03068]
[1743615245552,0.65853001,86623.0,86622.0,0.03068]
[1743615245747,0.65853001,86623.0,86605.0,0.09164]
[1743615245748,0.1154577,86610.0,86609.0,0.1731879]
[1743615245941,0.1167377,86610.0,86609.0,0.1937879]
[1743615246142,0.1167377,86610.0,86609.0,0.3188879]
[1743615246543,0.3681377,86610.0,86609.0,0.3188879]
[1743615247044,0.00128,86610.0,86609.0,0.3188879]
[1743615247245,0.00128,86610.0,86609.0,0.4410879]
[1743615247445,0.1167377,86610.0,86609.0,0.4410879]
[1743615248551,0.00128,86610.0,86609.0,0.4410879]
[1743615248738,0.00128,86610.0,86609.0,0.4510879]
[1743615249752,0.1207,86615.0,86614.0,0.1154524]
[1743615249940,0.2374311,86615.0,86614.0,0.1461324]
[1743615250348,0.2374311,86615.0,86614.0,0.03068]
[1743615251239,0.1154684,86602.0,86600.0,0.105]
[1743615251447,0.1154697,86601.0,86600.0,0.2204711]
[1743615251649,0.3796697,86601.0,86600.0,0.3604711]
[1743615252247,0.3809897,86601.0,86600.0,0.3611511]
[1743615252447,0.3796697,86601.0,86600.0,0.3604711]
[1743615252954,0.3796697,86601.0,86600.0,0.4883711]
[1743615253150,0.3796697,86601.0,86600.0,0.245]
[1743615254551,0.2481697,86601.0,86600.0,0.3604711]
[1743615254755,0.2481697,86601.0,86600.0,0.6144711]
[1743615255344,0.17025061,86607.0,86606.0,0.1154631]
[1743615255545,0.17025061,86607.0,86606.0,0.1354631]
[1743615255752,0.28571231,86607.0,86606.0,0.1354631]
[1743615255949,0.20483238,86612.0,86611.0,0.1154564]
[1743615256250,0.20483238,86612.0,86611.0,0.7362564]
[1743615256450,0.20483238,86612.0,86611.0,0.5072564]
[1743615256754,0.20483238,86612.0,86611.0,0.6328564]
[1743615256950,0.20483238,86612.0,86611.0,0.6334964]
[1743615257145,0.32156748,86612.0,86611.0,0.6334964]
[1743615257345,0.32156748,86612.0,86611.0,0.6234964]
[1743615257753,0.20611238,86612.0,86611.0,0.6234964]
[1743615258070,0.20483238,86612.0,86611.0,0.6234964]
[1743615258350,0.00124001,86612.0,86611.0,0.6234964]
[1743615258558,0.1154472,86622.0,86621.0,0.0577208]
[1743615258749,0.1154472,86622.0,86621.0,0.0877208]
[1743615258948,0.1163672,86622.0,86621.0,0.0877208]
[1743615259148,0.3709672,86622.0,86621.0,0.0877208]
[1743615260154,0.00092,86622.0,86621.0,0.0877208]
[1743615260457,0.00092,86622.0,86621.0,0.4709608]
[1743615260655,0.11561224,86624.0,86623.0,0.1154404]
[1743615260850,0.11645224,86624.0,86623.0,0.5163404]
[1743615261059,0.11733225,86624.0,86623.0,0.5163404]
[1743615261357,0.11649225,86624.0,86623.0,0.3860404]
[1743615261557,0.24719225,86624.0,86623.0,0.3860404]
[1743615261745,0.36959225,86624.0,86623.0,0.6437404]
[1743615261941,0.24719225,86624.0,86623.0,0.6437404]
[1743615262145,0.24719225,86624.0,86623.0,0.2706]
[1743615262346,0.24719225,86624.0,86623.0,0.3860404]
[1743615262545,0.13175315,86624.0,86623.0,0.3860404]
[1743615262752,0.13175315,86624.0,86623.0,0.6392404]
[1743615263344,0.24719225,86624.0,86623.0,0.6392404]
[1743615264645,0.13175315,86624.0,86623.0,0.64783233]
[1743615264847,0.13175315,86624.0,86623.0,0.65783233]
[1743615265051,0.24719225,86624.0,86623.0,0.65783233]
[1743615265357,0.24719225,86624.0,86623.0,0.6492404]
[1743615265754,0.13175315,86624.0,86623.0,0.6492404]
[1743615265960,0.13087314,86624.0,86623.0,0.6492404]
[1743615266646,0.13175315,86624.0,86623.0,0.6492404]
[1743615267149,0.00105315,86624.0,86623.0,0.6492404]
[1743615267350,0.00017314,86624.0,86623.0,0.65772047]
[1743615267646,0.0577009,86652.0,86623.0,0.65772047]
[1743615267647,0.20483238,86639.0,86638.0,0.1154204]
[1743615267853,0.2946099,86650.0,86649.0,0.1154058]
[1743615268053,0.4157099,86650.0,86649.0,0.02068]
[1743615268251,0.39538001,86650.0,86615.0,0.05945697]
[1743615268454,0.1154391,86624.0,86623.0,0.16391957]
[1743615268753,0.11651911,86624.0,86623.0,0.1560395]
[1743615268952,0.11651911,86624.0,86623.0,0.0306]
[1743615269155,0.11651911,86624.0,86623.0,0.1454404]
[1743615269349,0.11651911,86624.0,86623.0,0.1460404]
[1743615270348,0.00108001,86624.0,86623.0,0.1460404]
[1743615270547,0.00017314,86645.0,86638.0,0.1154204]
[1743615270548,0.5339318,86639.0,86638.0,0.1154204]
[1743615270754,0.6603318,86639.0,86638.0,0.01]
[1743615270950,0.79225659,86639.0,86638.0,0.01]
[1743615271156,0.92415359,86639.0,86638.0,0.00068]
[1743615271353,0.92415359,86639.0,86630.0,0.1154308]
[1743615271354,0.1154298,86631.0,86630.0,0.1154308]
[1743615271553,0.1154298,86631.0,86630.0,0.1254308]
[1743615271762,0.2438,86631.0,86630.0,0.1254308]
[1743615272551,0.1217,86631.0,86630.0,0.3853308]
[1743615272747,0.05787924,86645.0,86630.0,0.3853308]
[1743615272748,0.00017314,86645.0,86634.0,0.0577125]
[1743615272951,0.01426384,86650.0,86649.0,0.1154058]
[1743615273151,0.0004,86656.0,86655.0,0.1153978]
[1743615273351,0.0004,86656.0,86655.0,0.1453978]
[1743615273557,0.0004,86656.0,86655.0,0.1553978]
[1743615273761,1e-07,86656.0,86655.0,0.1553978]
[1743615273958,1e-07,86656.0,86655.0,0.16682914]
[1743615275366,0.1153966,86656.0,86655.0,0.1453978]
[1743615275660,0.4761966,86656.0,86655.0,0.03]
[1743615275852,0.4761966,86656.0,86633.0,0.4185134]
[1743615275853,0.1154071,86648.0,86633.0,0.3608]
[1743615276057,0.1154071,86648.0,86645.0,0.0577049]
[1743615276266,0.24475028,86648.0,86647.0,0.11622154]
[1743615276564,0.11648711,86648.0,86647.0,0.11622154]